bitfinex/quotes_ETHUSD_20240716
["timestamp","ask_amount","ask_price","bid_price","bid_amount"]
[1721098672643,0.89876302,3472.9,3472.5,2.87975]
[1721098672841,0.89876302,3472.9,3472.6,2.87968]
[1721098673155,3.29036302,3473.0,3472.8,2.87951]
[1721098673350,0.89876302,3473.0,3471.9,5.88019]
[1721098673552,0.89876302,3473.0,3472.7,2.87953]
[1721098674663,0.89876302,3473.0,3472.7,2.87952]
[1721098674866,0.89876302,3472.9,3472.5,2.87973]
[1721098675059,0.89876302,3472.9,3472.6,2.87967]
[1721098675571,0.89876302,3473.0,3472.6,2.87967]
[1721098675772,0.89876302,3473.0,3472.0,3.705779]
[1721098675773,0.89876302,3472.9,3472.4,2.87985]
[1721098676480,0.89876302,3472.8,3472.4,2.87985]
[1721098676776,0.89876302,3472.9,3472.4,2.87985]
[1721098677080,0.89876302,3472.9,3472.2,2.88001]
[1721098677081,0.89876302,3472.7,3472.2,2.88001]
[1721098677281,0.89927775,3472.6,3472.2,2.88001]
[1721098677792,2.3531,3472.5,3471.8,2.88034]
[1721098677950,0.89928848,3472.3,3471.8,2.88034]
[1721098678280,0.89928848,3472.2,3471.9,2.88026]
[1721098678578,0.89928848,3472.4,3471.9,2.88026]
[1721098678786,2.3531,3472.5,3471.9,2.88026]
[1721098678787,3.25238848,3472.5,3471.9,2.88026]
[1721098678958,0.89928848,3472.3,3471.9,2.88026]
[1721098679146,0.89928848,3472.3,3471.7,2.88043]
[1721098679672,0.89928848,3472.2,3471.8,2.88033]
[1721098680052,0.89928848,3472.2,3471.0,2.3925]
[1721098680053,0.89928848,3472.0,3471.2,2.88084]
[1721098680249,0.89928848,3471.9,3471.2,2.88084]
[1721098680484,0.89928848,3471.9,3470.8,2.8811]
[1721098680485,2.3531,3471.8,3470.9,3.32273281]
[1721098680659,3.25238848,3471.8,3471.2,2.88082]
[1721098680860,0.89928848,3471.7,3470.6,2.88134]
[1721098681148,6.4325613,3471.8,3470.8,2.88116]
[1721098681149,0.89928848,3471.5,3470.8,2.88116]
[1721098681378,0.89928848,3471.4,3470.9,2.88109]
[1721098681565,0.89928848,3471.3,3470.6,2.88134]
[1721098681770,0.89928848,3471.1,3470.5,2.88141]
[1721098681971,0.89928848,3471.3,3470.7,2.88123]
[1721098682164,0.89928848,3471.3,3470.8,2.88117]
[1721098682483,0.89928848,3471.5,3470.8,2.88117]
[1721098682685,1.1990513,3471.6,3470.8,2.88117]
[1721098682686,0.89928848,3471.4,3470.8,2.88117]
[1721098682844,0.89928848,3471.6,3470.8,2.88117]
[1721098683051,11.3994813,3471.7,3470.8,2.88117]
[1721098683052,2.36447546,3471.5,3470.8,2.88117]
[1721098683357,8.21928848,3471.7,3470.9,2.88102]
[1721098683558,0.89928848,3471.6,3470.0,2.88177]
[1721098683785,8.21928848,3471.7,3471.1,2.88086]
[1721098684148,0.89928848,3471.6,3471.1,2.88086]
[1721098684496,7.32,3471.7,3471.4,2.88066]
[1721098684652,0.89928848,3472.0,3471.5,2.88057]
[1721098684994,0.89928848,3472.0,3471.5,2.88059]
[1721098685296,0.89928848,3471.9,3471.6,2.8805]
[1721098685461,0.89928848,3472.0,3471.6,2.8805]
[1721098685783,4.10928848,3472.1,3471.6,2.8805]
[1721098686096,4.10700664,3472.1,3471.7,2.88041]
[1721098686258,3.21,3472.1,3471.7,2.88041]
[1721098686456,3.21,3472.1,3471.5,2.88055]
[1721098686791,0.89700664,3472.0,3471.3,2.88075]
[1721098686957,0.89700664,3472.0,3471.7,2.88043]
[1721098687163,3.21,3472.1,3471.7,2.88043]
[1721098689503,3.98782155,3472.1,3471.7,2.88043]
[1721098689655,3.98782155,3472.1,3471.4,2.88064]
[1721098689656,3.98782155,3472.1,3471.5,2.88056]
[1721098689855,4.88411866,3472.1,3471.5,2.88056]
[1721098690076,3.98782155,3472.1,3471.6,2.88048]
[1721098690277,3.21,3472.1,3471.7,2.8804]
[1721098691092,3.21,3472.1,3471.2,2.88082]
[1721098691261,4.10629711,3472.1,3471.2,2.88082]
[1721098691586,6.98640711,3472.1,3471.3,2.88074]
[1721098691794,1.06566699,3472.0,3471.3,2.88074]
[1721098692500,2.4641,3471.9,3471.1,2.8809]
[1721098692858,3.36039711,3471.9,3471.1,2.8809]
[1721098693204,3.36039711,3471.9,3471.3,2.88075]
[1721098693359,2.4641,3471.9,3471.3,2.88075]
[1721098693690,3.63522369,3471.9,3471.3,2.88075]
[1721098693896,3.63522369,3471.9,3470.4,2.88148]
[1721098694190,3.63522369,3471.9,3471.1,2.88091]
[1721098694688,3.63522369,3471.9,3471.2,2.88083]
[1721098694891,3.63522369,3471.9,3471.3,2.88074]
[1721098695091,0.79108907,3471.8,3471.3,2.88074]
[1721098695294,0.79108907,3471.8,3471.1,2.88088]
[1721098695596,0.79108907,3471.8,3470.6,2.88133]
[1721098695772,0.79108907,3471.8,3470.9,2.88107]
[1721098695973,3.67145907,3471.8,3470.9,2.88107]
[1721098696275,0.99120562,3471.7,3470.9,2.88107]
[1721098698864,0.99120562,3471.7,3471.1,2.88092]
[1721098699695,0.79108907,3471.8,3471.1,2.88092]
[1721098700265,2.4641,3471.9,3471.1,2.88092]
[1721098700468,2.4641,3471.9,3471.4,2.88067]
[1721098700876,2.4641,3471.9,3471.6,2.88043]
[1721098701777,2.4641,3471.9,3471.4,2.88067]
[1721098701973,2.4641,3471.9,3471.2,2.88083]
[1721098702199,3.03151,3471.9,3471.2,2.88083]
[1721098703079,2.4641,3471.9,3471.5,2.88059]
[1721098703290,2.4641,3471.9,3470.5,5.3174]
[1721098703291,2.4641,3471.9,3471.3,2.88075]
[1721098704313,2.4641,3471.9,3471.1,2.88092]
[1721098704521,2.3398,3471.8,3471.0,2.88098]
[1721098704672,0.766013,3471.7,3471.0,2.88098]
[1721098705077,0.766013,3471.7,3470.8,2.88117]
[1721098705510,0.766013,3471.7,3471.0,2.88097]
[1721098706090,0.766013,3471.7,3470.7,2.88126]
[1721098706291,5.22017,3471.8,3471.0,2.88101]
[1721098707412,5.22017,3471.8,3470.8,2.88117]
[1721098707621,5.22017,3471.8,3470.9,2.88106]
[1721098707987,5.22017,3471.8,3471.0,2.88099]
[1721098708502,2.3398,3471.8,3471.1,2.88092]
[1721098708697,2.3398,3471.8,3471.2,2.88084]
[1721098709003,2.3398,3471.8,3471.6,2.8805]
[1721098709217,2.3398,3471.8,3471.4,2.88064]
[1721098709525,2.3398,3471.8,3471.5,2.88058]
[1721098710084,3.21,3472.1,3471.6,2.88051]
[1721098711791,4.10629711,3472.1,3471.5,2.88057]
[1721098712030,1.00318271,3472.0,3471.5,2.88057]
[1721098712214,0.89629711,3471.9,3471.1,2.88086]
[1721098712740,2.3964,3471.8,3471.1,2.88086]
[1721098713029,2.3964,3471.8,3471.1,5.76173]
[1721098713190,3.29269711,3471.8,3471.2,2.88084]
[1721098713389,2.3964,3471.8,3471.2,2.88084]
[1721098713610,0.89629711,3471.7,3471.2,2.88084]
[1721098715321,0.89629711,3471.7,3471.0,2.88098]
[1721098715524,0.89629711,3471.7,3470.5,3.0]
[1721098715525,0.89629711,3471.7,3471.1,2.88091]
[1721098716303,0.89629711,3471.6,3471.2,2.88082]
[1721098716507,0.89629711,3471.6,3471.4,2.88066]
[1721098716707,3.29269711,3471.8,3471.4,2.88066]
[1721098716928,3.29269711,3471.8,3471.5,2.88057]
[1721098718108,0.89629711,3471.7,3471.6,2.8805]
[1721098719306,0.89629711,3471.8,3471.7,2.88043]
[1721098720430,1.19506281,3471.8,3471.7,2.88043]
[1721098721129,1.49874655,3471.9,3471.7,2.88043]
[1721098721332,1.20042991,3471.8,3471.7,2.88043]
[1721098721532,1.20042991,3471.9,3471.7,2.88043]
[1721098722092,1.20042991,3471.8,3471.7,2.88043]
[1721098722597,1.50076348,3471.9,3471.7,2.88043]
[1721098723630,1.20209111,3471.8,3471.7,2.88043]
[1721098724019,1.50076348,3472.0,3471.8,2.88035]
[1721098724637,1.20219309,3471.9,3471.8,2.88035]
[1721098724792,1.50076348,3472.0,3471.8,2.88035]
[1721098725229,3.21,3472.1,3471.8,2.88035]
[1721098725409,1.50299124,3471.9,3471.8,2.88035]
[1721098725939,3.21,3472.1,3471.6,2.88047]
[1721098725940,5.01358949,3472.1,3471.6,2.88047]
[1721098726228,1.5029748,3471.8,3471.6,2.88047]
[1721098726544,1.5029748,3471.7,3471.6,2.88047]
[1721098726719,1.5029748,3471.8,3471.6,2.88047]
[1721098727100,1.80358949,3472.0,3471.7,2.8804]
[1721098727405,1.50306801,3471.8,3471.7,2.8804]
[1721098727613,1.50306801,3471.9,3471.7,2.8804]
[1721098727820,1.50306801,3471.8,3471.7,2.8804]
[1721098728731,1.50336492,3471.8,3471.7,2.8804]
[1721098728943,1.50336492,3471.8,3470.6,2.3645]
[1721098729100,3.21,3472.1,3471.4,2.88068]
[1721098729301,1.20268459,3471.5,3471.4,5.76136]
[1721098729807,1.50335574,3471.6,3471.2,2.88083]
[1721098730001,0.90203032,3471.3,3471.2,5.76167]
[1721098730644,1.2027071,3471.4,3471.3,2.88076]
[1721098730938,0.90207276,3471.4,3471.3,5.76152]
[1721098731099,0.90207276,3471.4,3471.3,6.337672]
[1721098731298,10.53,3472.1,3471.5,2.88059]
[1721098731499,1.20276586,3471.7,3471.5,2.88059]
[1721098731732,1.20276586,3471.6,3471.5,2.88059]
[1721098731938,3.21,3472.1,3471.5,2.88059]
[1721098732136,1.50362854,3471.8,3471.6,2.88048]
[1721098732509,1.20304583,3471.7,3471.6,2.88048]
[1721098733137,1.50362854,3471.8,3471.6,2.88048]
[1721098733303,1.20335284,3471.7,3471.5,2.88058]
[1721098733504,1.20335284,3471.6,3471.5,2.88058]
[1721098734004,1.50362854,3471.7,3471.5,2.88058]
[1721098734206,1.50362854,3471.6,3471.3,2.88076]
[1721098734418,1.20331143,3471.4,3471.2,2.88084]
[1721098735308,1.20356024,3471.4,3471.2,2.88084]
[1721098735505,1.20356024,3471.4,3471.3,2.88076]
[1721098736111,1.20356024,3471.5,3471.4,2.88068]
[1721098736846,3.50076024,3471.6,3471.4,2.88068]
[1721098737342,1.20356024,3471.5,3471.4,2.88068]
[1721098737542,1.5044503,3471.6,3471.4,2.88068]
[1721098737709,1.20367001,3471.5,3471.4,2.88068]
[1721098738250,1.5044503,3471.6,3471.5,2.88059]
[1721098738722,4.13376764,3471.9,3471.6,2.88047]
[1721098739232,0.92970204,3471.8,3471.6,2.88047]
[1721098739438,4.13389797,3471.9,3471.6,2.88047]
[1721098739955,7.32,3472.0,3471.8,2.88035]
[1721098740248,7.32,3472.0,3471.9,2.88026]
[1721098740453,3.21,3472.1,3471.9,2.88026]
[1721098741634,5.01579605,3472.1,3471.9,2.88026]
[1721098741825,3.21,3472.1,3471.9,2.88026]
[1721098742428,0.93003355,3472.0,3471.7,2.88042]
[1721098742644,5.01579605,3472.1,3471.8,2.88033]
[1721098742821,5.01579605,3472.1,3471.9,2.88026]
[1721098743127,3.21,3472.1,3471.9,2.88026]
[1721098743744,1.50506033,3472.0,3471.9,2.88026]
[1721098743951,1.50506033,3472.0,3471.9,6.336588]
[1721098744126,1.80579605,3472.3,3472.2,2.88001]
[1721098744329,0.92998697,3472.3,3472.2,2.88001]
[1721098744548,2.73622717,3472.3,3472.2,2.88001]
[1721098745362,0.92998697,3472.3,3472.2,2.88001]
[1721098745557,2.73622717,3472.3,3472.2,2.88001]
[1721098745927,0.92998697,3472.3,3472.2,2.88001]
[1721098746629,2.73622717,3472.3,3472.2,2.88001]
[1721098747025,2.73622717,3472.3,3472.0,2.88017]
[1721098747349,0.92998697,3472.2,3472.1,2.8801]
[1721098747731,0.92998697,3472.2,3471.5,5.18095]
[1721098747732,4.78613163,3472.4,3472.2,2.88]
[1721098748046,2.98,3472.4,3472.2,2.88]
[1721098748247,4.78613163,3472.4,3472.2,2.88]
[1721098748768,9.7419,3472.6,3472.3,2.87993]
[1721098748769,1.80613163,3472.6,3472.3,2.87993]
[1721098748937,1.50492655,3472.4,3472.3,2.87993]
[1721098749137,1.50492655,3472.5,3472.4,2.87985]
[1721098749357,1.50492655,3472.6,3472.4,2.87985]
[1721098750233,1.20356048,3472.5,3472.4,2.87985]
[1721098750429,1.50492655,3472.6,3472.5,2.87976]
[1721098750947,9.6351,3473.0,3472.5,2.87976]
[1721098751267,1.50451018,3472.7,3472.5,2.87976]
[1721098751467,2.3151,3473.0,3472.5,2.87976]
[1721098751664,1.50428557,3472.7,3472.5,2.87976]
[1721098752461,1.20328708,3472.7,3472.6,2.87968]
[1721098752664,1.50428557,3472.9,3472.6,2.87968]
[1721098752665,1.20328708,3472.8,3472.6,2.87968]
[1721098752982,1.50428557,3472.8,3472.7,2.8796]
[1721098753965,1.50397272,3472.8,3472.7,2.8796]
[1721098754193,2.2974,3473.3,3472.7,2.8796]
[1721098754381,0.90236699,3472.9,3472.8,2.87952]
[1721098754666,0.90236699,3473.1,3472.8,2.87952]
[1721098754840,0.90236699,3473.1,3473.0,2.87935]
[1721098755042,1.20315599,3473.2,3473.0,2.87935]
[1721098755245,0.90199893,3473.1,3473.0,2.87935]
[1721098755646,1.20315599,3473.3,3473.0,2.87935]
[1721098755647,0.90199893,3473.2,3473.0,2.87935]
[1721098755938,0.90199893,3473.1,3473.0,2.87935]
[1721098756690,0.90199893,3473.1,3473.0,3.455237]
[1721098756840,0.90199893,3473.3,3473.0,3.455237]
[1721098757040,0.90199893,3473.2,3473.1,2.87927]
[1721098757664,0.90155305,3473.2,3473.1,2.87927]
[1721098758165,0.90155305,3473.3,3473.2,2.87918]
[1721098758376,0.90128859,3473.3,3473.2,2.87918]
[1721098758582,0.90128859,3473.4,3473.2,2.87918]
[1721098758729,0.90128859,3473.5,3473.2,2.87918]
[1721098758934,0.90128859,3473.3,3473.0,2.87935]
[1721098760982,0.90117932,3473.3,3473.0,2.87935]
[1721098762182,0.90117932,3473.3,3473.1,2.87926]
[1721098763078,0.90117932,3473.4,3473.1,2.87926]
[1721098763850,0.90117932,3473.4,3472.8,2.87951]
[1721098764089,0.90117932,3473.4,3473.0,2.87934]
[1721098764299,0.90117932,3473.2,3472.8,2.87951]
[1721098764594,0.90117932,3473.2,3472.6,2.87968]
[1721098764595,0.90117932,3473.3,3472.9,2.87943]
[1721098766404,0.90117932,3473.4,3472.9,2.87943]
[1721098767465,0.90117932,3473.3,3472.9,2.87943]
[1721098768990,3.30787932,3473.5,3472.9,2.87943]
[1721098769561,8.82099564,3473.8,3472.9,2.87943]
[1721098769562,0.90117932,3473.6,3472.9,2.87943]
[1721098769873,0.90117932,3473.6,3473.0,2.87933]
[1721098770463,0.90117932,3473.7,3473.3,2.87909]
[1721098770667,9.6697,3473.8,3473.3,2.87909]
[1721098770868,0.90020704,3473.6,3473.3,2.87909]
[1721098771817,0.90020704,3473.7,3473.3,2.87909]
[1721098772570,0.90020704,3473.7,3473.1,2.87926]
[1721098772771,0.90020704,3473.6,3473.2,2.87914]
[1721098775488,1.49527215,3473.6,3472.9,2.87937]
[1721098775692,1.49527215,3473.6,3472.8,2.87947]
[1721098775899,0.90020704,3473.4,3472.8,5.75894]
[1721098776207,0.90020704,3473.3,3472.8,5.75894]
[1721098776374,0.90020704,3473.3,3472.9,2.87941]
[1721098776799,0.90020704,3473.4,3472.9,2.87941]
[1721098777005,1.49527215,3473.6,3472.9,2.87941]
[1721098777398,0.90020704,3473.6,3473.1,2.87926]
[1721098778736,0.90020704,3474.2,3473.4,2.87902]
[1721098779018,0.90020704,3474.7,3474.1,2.87841]
[1721098779242,0.90020704,3474.8,3474.1,2.87841]
[1721098779425,0.79285225,3474.8,3474.1,2.87841]
[1721098779578,0.90020704,3474.7,3473.9,2.87859]
[1721098779776,0.90020704,3474.6,3473.9,2.87859]
[1721098780024,0.90020704,3474.4,3473.9,2.87859]
[1721098780177,0.90020704,3474.5,3473.9,2.87859]
[1721098780779,0.90020704,3474.4,3473.9,2.87859]
[1721098781000,0.90020704,3474.5,3473.9,2.87859]
[1721098781203,0.90020704,3474.5,3473.7,2.87876]
[1721098781416,2.3497,3474.4,3473.8,2.87867]
[1721098781615,3.24990704,3474.4,3473.8,2.87867]
[1721098781827,0.90020704,3474.2,3473.6,2.87885]
[1721098782115,3.54997605,3474.4,3473.6,2.87885]
[1721098782116,0.90020704,3474.3,3473.6,2.87885]
[1721098782429,0.90020704,3474.3,3473.5,3.0]
[1721098782430,0.90020704,3474.1,3473.5,2.87894]
[1721098782876,0.90020704,3474.1,3473.6,2.2621]
[1721098783109,0.90020704,3474.8,3474.2,2.87836]
[1721098783742,0.90070446,3474.9,3474.2,2.87836]
[1721098784208,0.90070446,3475.0,3474.2,2.87836]
[1721098784410,1.24775058,3475.0,3474.2,2.87836]
[1721098784655,0.90070446,3474.8,3474.2,2.87836]
[1721098784808,2.4648,3474.7,3474.1,2.87836]
[1721098785005,2.4648,3474.7,3474.2,2.87834]
[1721098785210,2.4648,3474.7,3474.0,2.87851]
[1721098785538,0.74443138,3474.6,3474.0,2.87851]
[1721098786647,0.90070446,3474.5,3473.6,3.0]
[1721098787012,3.77878446,3474.6,3473.7,2.87871]
[1721098787213,0.90070446,3474.5,3473.7,2.87871]
[1721098787547,3.77878446,3474.6,3473.7,2.87871]
[1721098787845,0.90070446,3474.5,3473.7,2.87871]
[1721098788466,3.77878446,3474.6,3473.7,2.87871]
[1721098788612,1.64515684,3474.5,3473.7,2.87871]
[1721098789019,0.90070446,3474.4,3473.7,2.87871]
[1721098789545,0.90070446,3474.4,3473.7,2.87876]
[1721098789744,0.90070446,3474.8,3474.0,2.87852]
[1721098789929,0.90070446,3474.7,3474.0,2.87852]
[1721098791151,0.90070446,3474.6,3473.7,2.87876]
[1721098791368,0.90070446,3474.6,3473.8,3.0]
[1721098791520,0.90107196,3474.6,3473.8,3.0]
[1721098791720,0.90107196,3474.6,3473.9,2.8786]
[1721098791960,0.90107196,3474.6,3473.8,5.87868]
[1721098792142,2.4591,3474.4,3473.8,3.0]
[1721098792317,2.4591,3474.4,3473.7,5.87875]
[1721098794151,3.36017196,3474.4,3473.7,5.87875]
[1721098794351,2.4591,3474.4,3473.7,5.87875]
[1721098794552,3.36017196,3474.4,3473.7,5.87875]
[1721098795123,3.36017196,3474.4,3473.8,2.87868]
[1721098795124,0.90107196,3474.3,3473.8,2.87868]
[1721098795630,0.90107196,3474.3,3473.7,3.0]
[1721098795631,0.90107196,3474.5,3473.9,3.207052]
[1721098795831,8.22107196,3474.9,3474.2,2.87829]
[1721098796060,8.22107196,3474.9,3474.3,5.87826]
[1721098796366,8.22107196,3474.9,3474.3,2.87826]
[1721098796521,8.22107196,3474.9,3474.4,3.0]
[1721098796840,7.32,3474.9,3474.4,5.87819]
[1721098798418,7.32,3474.9,3474.5,2.87811]
[1721098798817,8.22264841,3474.9,3474.4,3.0]
[1721098799055,0.90264841,3474.8,3474.4,3.0]
[1721098799568,0.90264841,3474.8,3473.9,2.8786]
[1721098799569,2.4591,3474.7,3473.9,2.8786]
[1721098799860,0.90264841,3474.3,3473.8,2.87867]
[1721098800235,0.90264841,3474.0,3473.1,2.87926]
[1721098800442,0.90264841,3473.5,3472.7,2.87955]
[1721098800641,0.90264841,3473.5,3472.5,2.87973]
[1721098800642,0.90264841,3473.3,3472.5,2.87973]
[1721098800855,0.90264841,3473.2,3472.2,2.88001]
[1721098801030,0.90264841,3473.1,3472.2,2.88001]
[1721098801227,0.90264841,3473.0,3472.2,2.88001]
[1721098801563,0.90264841,3473.2,3472.6,2.87961]
[1721098801857,0.90264841,3473.2,3472.4,2.87985]
[1721098802063,0.90264841,3473.1,3472.6,2.87968]
[1721098802239,0.90264841,3473.2,3472.6,2.87968]
[1721098802441,0.90264841,3473.3,3472.6,2.87968]
[1721098802761,0.90264841,3473.2,3472.7,2.87959]
[1721098802967,0.90264841,3473.1,3472.7,2.87959]
[1721098803426,0.90264841,3473.2,3472.7,2.87959]
[1721098803761,0.90264841,3473.2,3472.8,2.87944]
[1721098803961,5.29678,3473.7,3472.5,2.8797]
[1721098803962,0.90264841,3473.1,3472.5,2.8797]
[1721098804529,1.41414917,3473.2,3472.5,2.8797]
[1721098804530,1.11326637,3473.2,3472.5,2.8797]
[1721098805542,0.21061796,3473.2,3472.5,2.8797]
[1721098805725,0.9019876,3473.2,3472.5,2.8797]
[1721098805929,0.9019876,3473.2,3472.6,2.87967]
[1721098806130,0.9019876,3473.3,3472.8,2.87951]
[1721098806326,0.9019876,3473.4,3472.9,2.87943]
[1721098806869,0.9019876,3473.5,3473.0,2.87929]
[1721098807031,0.9019876,3473.6,3472.4,0.05758627]
[1721098807352,3.3199876,3473.7,3473.2,2.87918]
[1721098807529,4.1119876,3474.2,3473.2,2.3123]
[1721098807725,4.1119876,3474.2,3473.8,2.87869]
[1721098807977,7.32,3474.3,3473.9,2.87858]
[1721098808140,0.9019876,3474.5,3474.2,2.87836]
[1721098808865,0.9019876,3474.4,3474.1,2.87837]
[1721098809165,0.9019876,3474.3,3473.5,2.87893]
[1721098809370,0.9018896,3474.3,3473.8,2.87867]
[1721098809566,0.9018896,3474.2,3473.5,2.87893]
[1721098809731,0.9018896,3474.2,3473.6,5.87884]
[1721098809931,0.9018896,3474.2,3473.7,2.87871]
[1721098810541,0.9018896,3474.2,3473.5,2.87891]
[1721098810741,1.35774473,3474.2,3473.6,3.0]
[1721098810942,0.9018896,3474.8,3474.1,2.87844]
[1721098811148,0.9018896,3474.9,3474.3,2.87825]
[1721098811367,4.1118896,3475.0,3474.4,2.87819]
[1721098811671,0.9018896,3474.9,3474.4,2.87819]
[1721098812150,4.1118896,3475.0,3474.5,2.87808]
[1721098812672,0.9018896,3474.9,3474.5,2.87808]
[1721098812850,3.21,3475.0,3474.5,2.87808]
[1721098812851,4.1118896,3475.0,3474.5,2.87808]
[1721098813038,3.21,3475.0,3474.5,2.87808]
[1721098813239,4.1118896,3475.0,3474.5,2.87808]
[1721098813545,3.21,3475.0,3474.5,2.87808]
[1721098813857,3.21,3475.0,3474.9,2.87778]
[1721098815851,3.20412056,3475.0,3474.9,2.87778]
[1721098816346,3.20412056,3475.0,3474.7,2.87794]
[1721098816554,4.10601016,3475.0,3474.5,2.8781]
[1721098816736,0.9018896,3474.9,3474.6,2.87799]
[1721098817175,4.10601016,3475.0,3474.6,2.87799]
[1721098817383,0.9018896,3474.9,3474.6,2.87799]
[1721098817534,3.20412056,3475.0,3474.6,2.87799]
[1721098818050,3.20412056,3475.0,3474.9,2.87778]
[1721098819955,3.20412056,3475.0,3474.9,6.331132]
[1721098820751,3.20412056,3475.0,3474.2,3.0]
[1721098821120,3.20412056,3475.0,3473.4,7.27]
[1721098821121,0.9018896,3474.8,3474.1,2.87844]
[1721098821256,3.2320896,3474.7,3474.2,3.0]
[1721098821599,3.2320896,3474.7,3473.4,10.14896]
[1721098821600,0.9018896,3474.5,3473.0,2.87934]
[1721098821897,0.9018896,3474.3,3473.3,2.8791]
[1721098822186,0.9018896,3474.1,3473.6,2.87882]
[1721098822545,0.9018896,3474.0,3473.6,2.87882]
[1721098823094,0.9018896,3474.2,3473.6,2.87882]
[1721098823399,0.9018896,3474.1,3473.6,2.87882]
[1721098823566,0.9018896,3474.2,3473.8,2.87865]
[1721098823950,0.9018896,3474.2,3473.9,2.87853]
[1721098824152,1.20251946,3474.3,3474.0,2.8785]
[1721098824153,0.9018896,3474.3,3474.0,2.8785]
[1721098824865,1.50376925,3474.6,3474.0,2.8785]
[1721098824866,0.9018896,3474.2,3474.0,2.8785]
[1721098825250,0.9018896,3474.3,3474.0,2.8785]
[1721098825663,1.50376925,3474.6,3474.0,2.8785]
[1721098825664,0.9018896,3474.4,3474.0,2.8785]
[1721098826086,0.9018896,3474.4,3474.3,2.87827]
[1721098826271,0.9018896,3474.5,3474.3,2.87827]
[1721098827156,1.79635729,3474.5,3474.0,2.8785]
[1721098827395,0.90247475,3474.2,3474.0,2.8785]
[1721098827562,0.90247475,3474.2,3473.8,2.87865]
[1721098828194,0.90247475,3474.2,3473.6,2.87881]
[1721098828396,0.90247475,3474.1,3473.3,2.87902]
[1721098828696,0.90247475,3473.7,3473.3,2.87902]
[1721098828998,0.90247475,3473.6,3473.3,2.87902]
[1721098829310,0.90247475,3473.7,3473.3,2.87902]
[1721098829656,0.90247475,3473.7,3473.2,2.87916]
[1721098829868,0.90247475,3473.7,3473.3,2.87909]
[1721098830106,3.48801946,3473.9,3473.3,2.87909]
[1721098830107,0.90247475,3473.8,3473.3,2.87909]
[1721098831302,3.18797475,3473.9,3473.3,3.454924]
[1721098831470,0.90247475,3473.8,3473.4,2.879]
[1721098831674,0.90247475,3473.8,3473.4,5.758]
[1721098831869,0.90247475,3473.8,3473.4,2.879]
[1721098832056,3.18797475,3473.9,3473.4,2.879]
[1721098832455,0.90247475,3473.8,3473.4,2.879]
[1721098833196,0.90247475,3473.8,3473.5,2.87892]
[1721098833580,1.20251946,3474.0,3473.5,2.87892]
[1721098833581,0.90247475,3473.9,3473.5,2.87892]
[1721098834102,0.90189604,3473.8,3473.3,2.87907]
[1721098834314,0.90189604,3473.8,3473.0,2.87935]
[1721098834593,0.90189604,3473.8,3473.4,2.879]
[1721098834594,0.90192969,3473.8,3473.4,2.879]
[1721098835099,1.53852964,3474.0,3473.5,2.87893]
[1721098835297,0.90192969,3474.0,3473.5,2.87893]
[1721098835505,0.90192969,3474.1,3473.5,2.87893]
[1721098836409,0.90192969,3474.0,3473.5,2.87893]
[1721098836618,0.90192969,3474.1,3473.5,2.87893]
[1721098836800,0.90192969,3474.0,3473.5,2.87893]
[1721098836974,0.90192969,3474.0,3473.1,3.0]
[1721098836975,0.90192969,3474.1,3474.0,2.87852]
[1721098837317,0.90192969,3474.3,3474.1,2.8784]
[1721098838523,0.90192969,3474.3,3473.9,2.87857]
[1721098838816,0.90192969,3474.3,3474.0,2.87845]
[1721098839178,0.90192969,3474.3,3474.1,2.87842]
[1721098839523,8.22192969,3474.4,3474.1,2.87842]
[1721098839989,0.90192969,3474.3,3474.1,2.87842]
[1721098840190,0.90192969,3474.3,3473.9,2.87856]
[1721098840392,0.90192969,3474.2,3473.9,2.87856]
[1721098840704,0.90192969,3474.2,3474.0,2.87849]
[1721098841022,0.90192969,3474.3,3474.0,2.87849]
[1721098841384,0.90192969,3474.3,3473.8,2.87861]
[1721098841687,0.90192969,3474.3,3473.9,2.87858]
[1721098842217,0.90192969,3474.3,3474.0,2.8785]
[1721098842400,8.22192969,3474.4,3474.0,2.8785]
[1721098842598,0.90192969,3474.3,3473.8,2.87868]
[1721098842782,0.90192969,3474.2,3473.6,3.166733]
[1721098842980,0.90192969,3474.3,3473.6,3.166733]
[1721098843186,0.90192969,3474.2,3473.6,3.166733]
[1721098844386,0.90192969,3474.2,3473.4,2.87901]
[1721098844628,0.90192969,3474.1,3473.5,3.0]
[1721098844789,0.90192969,3474.1,3473.4,2.87901]
[1721098844990,4.38200867,3474.4,3473.5,2.87892]
[1721098844991,0.90192969,3474.0,3473.5,2.87892]
[1721098845326,0.90192969,3473.9,3473.1,3.0]
[1721098845499,2.4566,3474.0,3473.1,2.87919]
[1721098845500,0.90192969,3473.8,3473.1,2.87919]
[1721098845701,0.90192969,3473.8,3473.2,3.0]
[1721098846103,0.90192969,3473.9,3473.2,2.87918]
[1721098846329,0.90192969,3473.8,3473.2,2.87918]
[1721098846928,0.90192969,3473.7,3473.2,2.87918]
[1721098847410,0.90192969,3473.7,3473.3,2.87909]
[1721098848208,0.90192969,3473.8,3473.3,3.754925]
[1721098848825,0.90192969,3473.7,3473.3,3.754925]
[1721098849026,1.20257292,3473.9,3473.4,2.87902]
[1721098849027,0.90192969,3473.8,3473.4,2.87902]
[1721098849226,0.90192969,3473.7,3473.4,2.87902]
[1721098849593,3.96137021,3474.0,3473.4,2.87902]
[1721098849594,3.35852969,3474.0,3473.4,2.87902]
[1721098849799,0.90192969,3473.8,3473.4,2.87902]
[1721098850528,0.90192969,3473.7,3473.2,2.87913]
[1721098850693,0.90192969,3473.6,3473.2,2.87913]
[1721098851145,0.90192969,3473.6,3473.1,2.8792]
[1721098851310,0.90192969,3473.5,3473.1,2.8792]
[1721098851497,0.90192969,3473.5,3473.2,2.87916]
[1721098852098,0.90192969,3473.5,3472.9,2.87942]
[1721098852435,0.90192969,3473.4,3472.8,2.8795]
[1721098852648,0.85192969,3473.3,3472.8,2.8795]
[1721098853002,4.08143292,3473.6,3472.8,2.8795]
[1721098853203,1.20257292,3473.5,3472.8,2.8795]
[1721098853500,1.20257292,3473.5,3472.9,2.87942]
[1721098854139,3.67687292,3473.5,3472.8,2.87951]